[Event "Titled Tuesday Blitz November 15 Early 2022"]
[White "Bortnyk, Olexandr"]
[Black "Timofeev, Artyom"]
[WhiteFideId "14120828"]
[BlackFideId "4140419"]
[WhiteElo "2723"]
[BlackElo "2586"]
[Result "1-0"]
[Round "04"]
[TimeControl "180+1"]
[Date "2022.11.15"]
[WhiteClock "0:00:33"]
[BlackClock "0:00:06"]

1. e4 {[%clk 0:02:59]}  c5 {[%clk 0:02:59]} 2. c3 {[%clk 0:02:59]}  d5 {[%clk 0:02:56]} 3. exd5 {[%clk 0:03:00]}  Qxd5 {[%clk 0:02:56]} 4. d4 {[%clk 0:03:01]}  Nc6 {[%clk 0:02:48]} 5. Be3 {[%clk 0:03:01]}  Bf5 {[%clk 0:02:44]} 6. Na3 {[%clk 0:02:59]}  cxd4 {[%clk 0:02:41]} 7. Nf3 {[%clk 0:02:48]}  e5 {[%clk 0:02:33]} 8. Bc4 {[%clk 0:02:43]}  Qd7 {[%clk 0:02:29]} 9. cxd4 {[%clk 0:02:28]}  Bb4+ {[%clk 0:02:28]} 10. Bd2 {[%clk 0:02:28]}  Bxa3 {[%clk 0:02:20]} 11. bxa3 {[%clk 0:02:28]}  exd4 {[%clk 0:02:20]} 12. O-O {[%clk 0:02:24]}  Nge7 {[%clk 0:02:19]} 13. Bb4 {[%clk 0:02:11]}  O-O {[%clk 0:02:14]} 14. Bxe7 {[%clk 0:02:06]}  Qxe7 {[%clk 0:02:14]} 15. Nxd4 {[%clk 0:02:07]}  Nxd4 {[%clk 0:02:12]} 16. Qxd4 {[%clk 0:02:08]}  Qxa3 {[%clk 0:02:10]} 17. Rfe1 {[%clk 0:02:07]}  Bg6 {[%clk 0:02:05]} 18. h4 {[%clk 0:02:05]}  Rad8 {[%clk 0:01:59]} 19. Qg4 {[%clk 0:02:05]}  Qc5 {[%clk 0:01:52]} 20. Rac1 {[%clk 0:02:04]}  Qd4 {[%clk 0:01:48]} 21. Qg5 {[%clk 0:01:55]}  Qf6 {[%clk 0:01:38]} 22. Qxf6 {[%clk 0:01:53]}  gxf6 {[%clk 0:01:38]} 23. Re7 {[%clk 0:01:51]}  Rd4 {[%clk 0:01:11]} 24. Rxb7 {[%clk 0:01:46]}  a5 {[%clk 0:01:11]} 25. Rb5 {[%clk 0:01:39]}  Rxh4 {[%clk 0:01:09]} 26. Rxa5 {[%clk 0:01:38]}  Kg7 {[%clk 0:01:09]} 27. Bb3 {[%clk 0:01:32]}  Rd8 {[%clk 0:01:09]} 28. Rd5 {[%clk 0:01:30]}  Rxd5 {[%clk 0:01:08]} 29. Bxd5 {[%clk 0:01:31]}  Rd4 {[%clk 0:01:07]} 30. Bb3 {[%clk 0:01:30]}  h5 {[%clk 0:01:02]} 31. Rc4 {[%clk 0:01:27]}  Rd2 {[%clk 0:00:58]} 32. Rc7 {[%clk 0:01:10]}  Rb2 {[%clk 0:00:58]} 33. f3 {[%clk 0:01:06]}  Kh6 {[%clk 0:00:57]} 34. Bxf7 {[%clk 0:01:01]}  Bxf7 {[%clk 0:00:44]} 35. Rxf7 {[%clk 0:01:02]}  Kg5 {[%clk 0:00:44]} 36. Ra7 {[%clk 0:00:59]}  Kf4 {[%clk 0:00:37]} 37. Kh2 {[%clk 0:00:58]}  Ke3 {[%clk 0:00:35]} 38. Rf7 {[%clk 0:00:46]}  Rb6 {[%clk 0:00:29]} 39. Rh7 {[%clk 0:00:44]}  Rb5 {[%clk 0:00:28]} 40. Rh6 {[%clk 0:00:44]}  Rf5 {[%clk 0:00:28]} 41. a4 {[%clk 0:00:42]}  Kf2 {[%clk 0:00:27]} 42. Rg6 {[%clk 0:00:41]}  Ra5 {[%clk 0:00:25]} 43. Rxf6 {[%clk 0:00:34]}  Rxa4 {[%clk 0:00:20]} 44. g4 {[%clk 0:00:34]}  hxg4 {[%clk 0:00:06]} 45. fxg4+ {[%clk 0:00:35]}  Ke3 {[%clk 0:00:06]} 46. Kg3 {[%clk 0:00:35]}  Ra1 {[%clk 0:00:06]} 47. Re6+ {[%clk 0:00:34]}  Kd4 {[%clk 0:00:06]} 48. g5 {[%clk 0:00:34]}  Rg1+ {[%clk 0:00:05]} 49. Kh4 {[%clk 0:00:34]}  Kd5 {[%clk 0:00:06]} 50. Re2 {[%clk 0:00:33]}  Kd6 {[%clk 0:00:06]} 51. Kh5 {[%clk 0:00:33]} 1-0


[Site "https://www.chess.com"]

[Event "Titled Tuesday Blitz November 15 Early 2022"]
[White "Boruchovsky, Avital"]
[Black "Parpiev, Isaak"]
[WhiteFideId "2800055"]
[BlackFideId "34281576"]
[WhiteElo "2458"]
[BlackElo "2094"]
[Result "1-0"]
[Round "04"]
[TimeControl "180+1"]
[Date "2022.11.16"]
[WhiteClock "0:00:21"]
[BlackClock "0:00:02"]

1. g3 {[%clk 0:02:56]}  Nf6 {[%clk 0:02:58]} 2. Bg2 {[%clk 0:02:57]}  d6 {[%clk 0:02:58]} 3. d4 {[%clk 0:02:57]}  g6 {[%clk 0:02:56]} 4. Nf3 {[%clk 0:02:56]}  Bg7 {[%clk 0:02:57]} 5. O-O {[%clk 0:02:57]}  O-O {[%clk 0:02:57]} 6. Nc3 {[%clk 0:02:56]}  Nbd7 {[%clk 0:02:52]} 7. e4 {[%clk 0:02:55]}  e5 {[%clk 0:02:51]} 8. Re1 {[%clk 0:02:55]}  c6 {[%clk 0:02:48]} 9. a4 {[%clk 0:02:54]}  a5 {[%clk 0:02:48]} 10. b3 {[%clk 0:02:53]}  Nh5 {[%clk 0:02:34]} 11. Ba3 {[%clk 0:02:51]}  exd4 {[%clk 0:02:26]} 12. Nxd4 {[%clk 0:02:52]}  Qf6 {[%clk 0:02:22]} 13. Nde2 {[%clk 0:02:46]}  Nc5 {[%clk 0:02:21]} 14. Qd2 {[%clk 0:02:44]}  Bg4 {[%clk 0:02:17]} 15. f3 {[%clk 0:02:33]}  Bxf3 {[%clk 0:01:15]} 16. Rf1 {[%clk 0:02:32]}  Bxe2 {[%clk 0:01:15]} 17. Rxf6 {[%clk 0:02:29]}  Bxf6 {[%clk 0:01:16]} 18. Nxe2 {[%clk 0:01:54]}  Bxa1 {[%clk 0:01:15]} 19. c3 {[%clk 0:01:54]}  Rfe8 {[%clk 0:00:45]} 20. Qd1 {[%clk 0:01:52]}  Nxe4 {[%clk 0:00:32]} 21. Qxa1 {[%clk 0:01:52]}  d5 {[%clk 0:00:32]} 22. Bc1 {[%clk 0:01:25]}  Ng7 {[%clk 0:00:21]} 23. Nd4 {[%clk 0:01:07]}  Nd6 {[%clk 0:00:16]} 24. Bf4 {[%clk 0:01:05]}  Ndf5 {[%clk 0:00:16]} 25. Nxf5 {[%clk 0:01:03]}  Nxf5 {[%clk 0:00:17]} 26. Qd1 {[%clk 0:00:59]}  h5 {[%clk 0:00:07]} 27. Bh3 {[%clk 0:00:57]}  Ng7 {[%clk 0:00:06]} 28. Kf2 {[%clk 0:00:55]}  Re4 {[%clk 0:00:06]} 29. Bg2 {[%clk 0:00:52]}  Re6 {[%clk 0:00:06]} 30. Qd3 {[%clk 0:00:51]}  Rae8 {[%clk 0:00:06]} 31. Qd2 {[%clk 0:00:47]}  R6e7 {[%clk 0:00:03]} 32. c4 {[%clk 0:00:45]}  dxc4 {[%clk 0:00:03]} 33. bxc4 {[%clk 0:00:46]}  Re6 {[%clk 0:00:03]} 34. Bf3 {[%clk 0:00:42]}  Nf5 {[%clk 0:00:02]} 35. g4 {[%clk 0:00:41]}  hxg4 {[%clk 0:00:02]} 36. Bxg4 {[%clk 0:00:41]}  Rf6 {[%clk 0:00:02]} 37. Bxf5 {[%clk 0:00:38]}  Rxf5 {[%clk 0:00:02]} 38. Kg3 {[%clk 0:00:35]}  Re4 {[%clk 0:00:02]} 39. Be3 {[%clk 0:00:26]}  Rxc4 {[%clk 0:00:02]} 40. Qd3 {[%clk 0:00:25]}  Rb4 {[%clk 0:00:01]} 41. Qd8+ {[%clk 0:00:24]}  Kh7 {[%clk 0:00:02]} 42. Bd4 {[%clk 0:00:23]}  Rb3+ {[%clk 0:00:02]} 43. Kg2 {[%clk 0:00:21]}  Rb2+ {[%clk 0:00:02]} 44. Bxb2 {[%clk 0:00:21]} 1-0


[Site "https://www.chess.com"]

[Event "Titled Tuesday Blitz November 15 Early 2022"]
[White "Buksa, Nataliya"]
[Black "Willow, Jonah B"]
[WhiteFideId "14123622"]
[BlackFideId "438804"]
[WhiteElo "2313"]
[BlackElo "2300"]
[Result "0-1"]
[Round "04"]
[TimeControl "180+1"]
[Date "2022.11.15"]
[WhiteClock "0:00:20"]
[BlackClock "0:00:52"]

1. d4 {[%clk 0:03:00]}  Nf6 {[%clk 0:03:00]} 2. Nc3 {[%clk 0:03:00]}  d5 {[%clk 0:03:00]} 3. Bf4 {[%clk 0:03:00]}  c5 {[%clk 0:03:00]} 4. e3 {[%clk 0:03:01]}  cxd4 {[%clk 0:03:00]} 5. exd4 {[%clk 0:03:01]}  Bg4 {[%clk 0:03:01]} 6. Be2 {[%clk 0:02:59]}  Bxe2 {[%clk 0:03:01]} 7. Ngxe2 {[%clk 0:02:59]}  Nc6 {[%clk 0:03:02]} 8. O-O {[%clk 0:02:57]}  e6 {[%clk 0:03:02]} 9. a3 {[%clk 0:02:47]}  Bd6 {[%clk 0:03:02]} 10. Bxd6 {[%clk 0:02:44]}  Qxd6 {[%clk 0:03:03]} 11. Ng3 {[%clk 0:02:44]}  O-O {[%clk 0:02:56]} 12. Re1 {[%clk 0:02:43]}  a6 {[%clk 0:02:55]} 13. Nce2 {[%clk 0:02:39]}  b5 {[%clk 0:02:53]} 14. c3 {[%clk 0:02:37]}  a5 {[%clk 0:02:53]} 15. Qd2 {[%clk 0:02:36]}  Rfc8 {[%clk 0:02:52]} 16. Nf4 {[%clk 0:02:34]}  b4 {[%clk 0:02:48]} 17. axb4 {[%clk 0:02:34]}  axb4 {[%clk 0:02:49]} 18. Nd3 {[%clk 0:02:33]}  bxc3 {[%clk 0:02:39]} 19. bxc3 {[%clk 0:02:33]}  Na5 {[%clk 0:02:35]} 20. Ne5 {[%clk 0:02:16]}  Qd8 {[%clk 0:02:21]} 21. Qd3 {[%clk 0:01:53]}  Nd7 {[%clk 0:02:10]} 22. Nxd7 {[%clk 0:01:24]}  Qxd7 {[%clk 0:02:11]} 23. Ne2 {[%clk 0:01:23]}  Nc4 {[%clk 0:02:06]} 24. h4 {[%clk 0:01:23]}  Qc7 {[%clk 0:01:51]} 25. g3 {[%clk 0:01:19]}  Nd6 {[%clk 0:01:50]} 26. Kg2 {[%clk 0:01:03]}  h6 {[%clk 0:01:38]} 27. Reb1 {[%clk 0:00:56]}  Ne4 {[%clk 0:01:28]} 28. Rxa8 {[%clk 0:00:49]}  Rxa8 {[%clk 0:01:29]} 29. f3 {[%clk 0:00:48]}  Nd6 {[%clk 0:01:28]} 30. Kh3 {[%clk 0:00:48]}  g6 {[%clk 0:01:21]} 31. Rb2 {[%clk 0:00:48]}  Kg7 {[%clk 0:01:16]} 32. h5 {[%clk 0:00:35]}  Nc4 {[%clk 0:01:16]} 33. Rc2 {[%clk 0:00:33]}  g5 {[%clk 0:01:08]} 34. f4 {[%clk 0:00:32]}  Qe7 {[%clk 0:01:02]} 35. Qf3 {[%clk 0:00:22]}  Ra1 {[%clk 0:00:58]} 36. Qg4 {[%clk 0:00:22]}  Ne3 {[%clk 0:00:55]} 37. Qf3 {[%clk 0:00:20]}  Nxc2 {[%clk 0:00:55]} 38. Qd3 {[%clk 0:00:20]}  Rh1+ {[%clk 0:00:52]} 39. Kg2 {[%clk 0:00:20]}  Ne1+ {[%clk 0:00:52]} 0-1


[Site "https://www.chess.com"]

[Event "Titled Tuesday Blitz November 15 Early 2022"]
[White "Chylewski, Patryk"]
[Black "Shohat, Yotam"]
[WhiteFideId "1186191"]
[BlackFideId "2813955"]
[WhiteElo "2192"]
[BlackElo "2216"]
[Result "0-1"]
[Round "04"]
[TimeControl "180+1"]
[Date "2022.11.16"]
[WhiteClock "0:00:02"]
[BlackClock "0:00:06"]

1. e4 {[%clk 0:03:00]}  c5 {[%clk 0:02:58]} 2. Nf3 {[%clk 0:02:58]}  d6 {[%clk 0:02:57]} 3. c3 {[%clk 0:02:58]}  Nf6 {[%clk 0:02:56]} 4. h3 {[%clk 0:02:58]}  g6 {[%clk 0:02:57]} 5. Bd3 {[%clk 0:02:56]}  Bg7 {[%clk 0:02:57]} 6. O-O {[%clk 0:02:56]}  O-O {[%clk 0:02:57]} 7. Bc2 {[%clk 0:02:55]}  e5 {[%clk 0:02:47]} 8. d4 {[%clk 0:02:52]}  exd4 {[%clk 0:02:47]} 9. cxd4 {[%clk 0:02:53]}  cxd4 {[%clk 0:02:47]} 10. Nxd4 {[%clk 0:02:53]}  Nc6 {[%clk 0:02:48]} 11. Nc3 {[%clk 0:02:48]}  Nxd4 {[%clk 0:02:41]} 12. Qxd4 {[%clk 0:02:49]}  Be6 {[%clk 0:02:37]} 13. Qb4 {[%clk 0:02:43]}  Qd7 {[%clk 0:02:06]} 14. Rd1 {[%clk 0:02:34]}  Bxh3 {[%clk 0:01:30]} 15. gxh3 {[%clk 0:02:35]}  Qxh3 {[%clk 0:01:30]} 16. Qxd6 {[%clk 0:02:34]}  Ng4 {[%clk 0:01:21]} 17. Qg3 {[%clk 0:02:27]}  Qh5 {[%clk 0:01:19]} 18. Bf4 {[%clk 0:02:08]}  g5 {[%clk 0:01:13]} 19. f3 {[%clk 0:01:07]}  gxf4 {[%clk 0:00:55]} 20. Qxg4 {[%clk 0:01:07]}  Qc5+ {[%clk 0:00:55]} 21. Kh2 {[%clk 0:01:02]}  Kh8 {[%clk 0:00:50]} 22. Rd5 {[%clk 0:01:00]}  Qf2+ {[%clk 0:00:43]} 23. Qg2 {[%clk 0:00:57]}  Qh4+ {[%clk 0:00:40]} 24. Kg1 {[%clk 0:00:56]}  Rg8 {[%clk 0:00:36]} 25. Qh2 {[%clk 0:00:17]}  Bxc3+ {[%clk 0:00:33]} 26. Kh1 {[%clk 0:00:18]}  Qxh2+ {[%clk 0:00:32]} 27. Kxh2 {[%clk 0:00:18]}  Bxb2 {[%clk 0:00:32]} 28. Rb1 {[%clk 0:00:18]}  Bc3 {[%clk 0:00:11]} 29. Rxb7 {[%clk 0:00:18]}  Rg6 {[%clk 0:00:09]} 30. Rh5 {[%clk 0:00:14]}  Rag8 {[%clk 0:00:06]} 31. Rxf7 {[%clk 0:00:03]}  Rg2+ {[%clk 0:00:06]} 32. Kh1 {[%clk 0:00:03]}  Rg1+ {[%clk 0:00:07]} 33. Kh2 {[%clk 0:00:03]}  R8g2+ {[%clk 0:00:07]} 34. Kh3 {[%clk 0:00:04]}  Rg3+ {[%clk 0:00:07]} 35. Kh2 {[%clk 0:00:04]}  R1g2+ {[%clk 0:00:07]} 36. Kh1 {[%clk 0:00:04]}  Rxc2 {[%clk 0:00:07]} 37. Rfxh7+ {[%clk 0:00:03]}  Kg8 {[%clk 0:00:07]} 38. Rh8+ {[%clk 0:00:04]}  Bxh8 {[%clk 0:00:07]} 39. Rg5+ {[%clk 0:00:02]}  Rxg5 {[%clk 0:00:06]} 0-1


[Site "https://www.chess.com"]

[Event "Titled Tuesday Blitz November 15 Early 2022"]
[White "Corrales Jimenez, Fidel"]
[Black "Abrahamyan, Tatev"]
[WhiteFideId "3506690"]
[BlackFideId "13301918"]
[WhiteElo "2541"]
[BlackElo "2347"]
[Result "1-0"]
[Round "04"]
[TimeControl "180+1"]
[Date "2022.11.16"]
[WhiteClock "0:00:11"]
[BlackClock "0:00:15"]

1. d4 {[%clk 0:03:00]}  Nf6 {[%clk 0:02:57]} 2. c4 {[%clk 0:02:59]}  e6 {[%clk 0:02:57]} 3. Nc3 {[%clk 0:02:59]}  Bb4 {[%clk 0:02:57]} 4. a3 {[%clk 0:02:59]}  Bxc3+ {[%clk 0:02:56]} 5. bxc3 {[%clk 0:03:00]}  O-O {[%clk 0:02:53]} 6. f3 {[%clk 0:02:58]}  c5 {[%clk 0:02:52]} 7. e4 {[%clk 0:02:57]}  b6 {[%clk 0:02:53]} 8. Bd3 {[%clk 0:02:53]}  Nc6 {[%clk 0:02:49]} 9. Be3 {[%clk 0:02:53]}  Ba6 {[%clk 0:02:49]} 10. e5 {[%clk 0:02:45]}  Ne8 {[%clk 0:02:47]} 11. f4 {[%clk 0:02:45]}  Na5 {[%clk 0:02:26]} 12. Qe2 {[%clk 0:02:06]}  cxd4 {[%clk 0:02:16]} 13. cxd4 {[%clk 0:02:05]}  Rc8 {[%clk 0:02:17]} 14. Rc1 {[%clk 0:02:04]}  d5 {[%clk 0:02:03]} 15. cxd5 {[%clk 0:01:20]}  Rxc1+ {[%clk 0:01:55]} 16. Bxc1 {[%clk 0:01:21]}  Bxd3 {[%clk 0:01:54]} 17. Qxd3 {[%clk 0:01:22]}  Qxd5 {[%clk 0:01:54]} 18. Nf3 {[%clk 0:01:23]}  Nc7 {[%clk 0:01:48]} 19. O-O {[%clk 0:01:21]}  Qc4 {[%clk 0:01:39]} 20. Qe4 {[%clk 0:01:20]}  Qd5 {[%clk 0:01:12]} 21. Qe1 {[%clk 0:01:11]}  Nb5 {[%clk 0:01:10]} 22. Be3 {[%clk 0:00:48]}  Rc8 {[%clk 0:00:59]} 23. Qh4 {[%clk 0:00:39]}  Rc2 {[%clk 0:00:55]} 24. Bf2 {[%clk 0:00:34]}  h6 {[%clk 0:00:54]} 25. Qe7 {[%clk 0:00:32]}  Rc7 {[%clk 0:00:45]} 26. Qe8+ {[%clk 0:00:31]}  Kh7 {[%clk 0:00:46]} 27. Bh4 {[%clk 0:00:20]}  Nc3 {[%clk 0:00:41]} 28. Bf6 {[%clk 0:00:18]}  gxf6 {[%clk 0:00:37]} 29. exf6 {[%clk 0:00:19]}  Qf5 {[%clk 0:00:33]} 30. Qd8 {[%clk 0:00:18]}  Rb7 {[%clk 0:00:29]} 31. Ne5 {[%clk 0:00:18]}  Ne2+ {[%clk 0:00:28]} 32. Kh1 {[%clk 0:00:18]}  Nxf4 {[%clk 0:00:19]} 33. Nd7 {[%clk 0:00:13]}  Rxd7 {[%clk 0:00:16]} 34. Qxd7 {[%clk 0:00:14]}  Qe4 {[%clk 0:00:16]} 35. Qxf7+ {[%clk 0:00:12]}  Kh8 {[%clk 0:00:15]} 36. Qg7# {[%clk 0:00:11]} 1-0


[Site "https://www.chess.com"]

[Event "Titled Tuesday Blitz November 15 Early 2022"]
[White "Cramling Bellon, Anna"]
[Black "Avazkhonov, Alikhon"]
[WhiteFideId "32009232"]
[BlackFideId "14208504"]
[WhiteElo "1972"]
[BlackElo "1739"]
[Result "0-1"]
[Round "04"]
[TimeControl "180+1"]
[Date "2022.11.16"]
[WhiteClock "0:00:01"]
[BlackClock "0:00:40"]

1. d4 {[%clk 0:03:00]}  Nf6 {[%clk 0:02:58]} 2. c4 {[%clk 0:02:59]}  e6 {[%clk 0:02:58]} 3. Nc3 {[%clk 0:02:57]}  Bb4 {[%clk 0:02:59]} 4. Qc2 {[%clk 0:02:57]}  b6 {[%clk 0:02:55]} 5. e4 {[%clk 0:02:56]}  c5 {[%clk 0:02:54]} 6. d5 {[%clk 0:02:55]}  Qe7 {[%clk 0:02:55]} 7. Be3 {[%clk 0:01:17]}  exd5 {[%clk 0:02:25]} 8. exd5 {[%clk 0:01:18]}  Ng4 {[%clk 0:02:24]} 9. Qe2 {[%clk 0:00:39]}  Nxe3 {[%clk 0:02:24]} 10. Qxe3 {[%clk 0:00:38]}  Qxe3+ {[%clk 0:02:15]} 11. fxe3 {[%clk 0:00:39]}  Bxc3+ {[%clk 0:01:59]} 12. bxc3 {[%clk 0:00:39]}  d6 {[%clk 0:01:59]} 13. Bd3 {[%clk 0:00:38]}  O-O {[%clk 0:01:59]} 14. Nf3 {[%clk 0:00:38]}  Bg4 {[%clk 0:01:58]} 15. Kf2 {[%clk 0:00:38]}  Nd7 {[%clk 0:01:53]} 16. h3 {[%clk 0:00:19]}  Bxf3 {[%clk 0:01:52]} 17. gxf3 {[%clk 0:00:19]}  f5 {[%clk 0:01:51]} 18. Rhg1 {[%clk 0:00:16]}  Ne5 {[%clk 0:01:51]} 19. Be2 {[%clk 0:00:15]}  f4 {[%clk 0:01:51]} 20. e4 {[%clk 0:00:13]}  Rf7 {[%clk 0:01:33]} 21. h4 {[%clk 0:00:13]}  Rf6 {[%clk 0:01:21]} 22. h5 {[%clk 0:00:10]}  Raf8 {[%clk 0:01:18]} 23. a4 {[%clk 0:00:09]}  Rh6 {[%clk 0:01:14]} 24. Rg5 {[%clk 0:00:08]}  g6 {[%clk 0:00:53]} 25. Rag1 {[%clk 0:00:06]}  Kf7 {[%clk 0:00:51]} 26. hxg6+ {[%clk 0:00:06]}  hxg6 {[%clk 0:00:52]} 27. R1g2 {[%clk 0:00:05]}  Rfh8 {[%clk 0:00:51]} 28. a5 {[%clk 0:00:04]}  bxa5 {[%clk 0:00:49]} 29. Ke1 {[%clk 0:00:03]}  Rh1+ {[%clk 0:00:45]} 30. Rg1 {[%clk 0:00:04]}  a4 {[%clk 0:00:42]} 31. Kd2 {[%clk 0:00:03]}  a3 {[%clk 0:00:40]} 32. R5g2 {[%clk 0:00:01]}  a2 {[%clk 0:00:39]} 33. Rxh1 {[%clk 0:00:01]}  Rxh1 {[%clk 0:00:40]} 0-1


[Site "https://www.chess.com"]

[Event "Titled Tuesday Blitz November 15 Early 2022"]
[White "Csonka, Balazs"]
[Black "Sreyas Payyappat"]
[WhiteFideId "742910"]
[BlackFideId "46674969"]
[WhiteElo "2404"]
[BlackElo "2083"]
[Result "1-0"]
[Round "04"]
[TimeControl "180+1"]
[Date "2022.11.16"]
[WhiteClock "0:01:33"]
[BlackClock "0:01:52"]

1. d4 {[%clk 0:03:00]}  Nf6 {[%clk 0:02:58]} 2. c4 {[%clk 0:02:57]}  c5 {[%clk 0:02:57]} 3. d5 {[%clk 0:02:56]}  e6 {[%clk 0:02:55]} 4. Nc3 {[%clk 0:02:55]}  exd5 {[%clk 0:02:56]} 5. cxd5 {[%clk 0:02:56]}  d6 {[%clk 0:02:55]} 6. e4 {[%clk 0:02:50]}  g6 {[%clk 0:02:55]} 7. f4 {[%clk 0:02:50]}  Bg7 {[%clk 0:02:54]} 8. Bb5+ {[%clk 0:02:49]}  Nfd7 {[%clk 0:02:54]} 9. Bd3 {[%clk 0:02:43]}  O-O {[%clk 0:02:53]} 10. Nf3 {[%clk 0:02:42]}  f5 {[%clk 0:02:53]} 11. exf5 {[%clk 0:02:32]}  gxf5 {[%clk 0:02:54]} 12. O-O {[%clk 0:02:31]}  Nf6 {[%clk 0:02:53]} 13. Ng5 {[%clk 0:02:31]}  h6 {[%clk 0:02:47]} 14. Ne6 {[%clk 0:02:27]}  Bxe6 {[%clk 0:02:46]} 15. dxe6 {[%clk 0:02:28]}  Ng4 {[%clk 0:02:46]} 16. Bxf5 {[%clk 0:02:15]}  Bd4+ {[%clk 0:02:36]} 17. Kh1 {[%clk 0:02:15]}  Nxh2 {[%clk 0:02:31]} 18. Kxh2 {[%clk 0:02:02]}  Rxf5 {[%clk 0:02:30]} 19. Qg4+ {[%clk 0:02:01]}  Kh8 {[%clk 0:02:13]} 20. Qxf5 {[%clk 0:01:55]}  Nc6 {[%clk 0:02:14]} 21. Qh3 {[%clk 0:01:52]}  Qf6 {[%clk 0:02:11]} 22. Ne4 {[%clk 0:01:40]}  Qg6 {[%clk 0:02:07]} 23. f5 {[%clk 0:01:40]}  Qh7 {[%clk 0:02:00]} 24. Bxh6 {[%clk 0:01:38]}  Rg8 {[%clk 0:01:56]} 25. Ng5 {[%clk 0:01:35]}  Be5+ {[%clk 0:01:52]} 26. Kh1 {[%clk 0:01:33]} 1-0


[Site "https://www.chess.com"]

[Event "Titled Tuesday Blitz November 15 Early 2022"]
[White "Deac, Bogdan-Daniel"]
[Black "Durarbayli, Vasif"]
[WhiteFideId "1226380"]
[BlackFideId "13402935"]
[WhiteElo "2648"]
[BlackElo "2586"]
[Result "1/2-1/2"]
[Round "04"]
[TimeControl "180+1"]
[Date "2022.11.15"]
[WhiteClock "0:00:08"]
[BlackClock "0:00:24"]

1. d4 {[%clk 0:03:00]}  d5 {[%clk 0:02:59]} 2. Nf3 {[%clk 0:03:00]}  Nf6 {[%clk 0:02:59]} 3. c4 {[%clk 0:03:01]}  c6 {[%clk 0:02:59]} 4. Nc3 {[%clk 0:03:00]}  e6 {[%clk 0:02:59]} 5. e3 {[%clk 0:03:00]}  Nbd7 {[%clk 0:02:59]} 6. Be2 {[%clk 0:03:00]}  Bd6 {[%clk 0:02:58]} 7. O-O {[%clk 0:02:59]}  O-O {[%clk 0:02:59]} 8. Qc2 {[%clk 0:03:00]}  dxc4 {[%clk 0:02:57]} 9. a4 {[%clk 0:02:59]}  e5 {[%clk 0:02:47]} 10. Bxc4 {[%clk 0:02:58]}  exd4 {[%clk 0:02:44]} 11. exd4 {[%clk 0:02:58]}  Nb6 {[%clk 0:02:44]} 12. Bb3 {[%clk 0:02:58]}  Nbd5 {[%clk 0:02:36]} 13. Bg5 {[%clk 0:02:58]}  h6 {[%clk 0:02:14]} 14. Bh4 {[%clk 0:02:38]}  Be7 {[%clk 0:02:00]} 15. Rfe1 {[%clk 0:02:23]}  Be6 {[%clk 0:02:00]} 16. Nxd5 {[%clk 0:02:20]}  Bxd5 {[%clk 0:01:52]} 17. Bxd5 {[%clk 0:02:06]}  Nxd5 {[%clk 0:01:51]} 18. Bxe7 {[%clk 0:02:05]}  Nxe7 {[%clk 0:01:52]} 19. Qb3 {[%clk 0:02:05]}  Qc7 {[%clk 0:01:45]} 20. Re5 {[%clk 0:02:04]}  Rad8 {[%clk 0:01:41]} 21. Rae1 {[%clk 0:02:02]}  Nd5 {[%clk 0:01:40]} 22. h4 {[%clk 0:01:58]}  Qd7 {[%clk 0:01:24]} 23. g3 {[%clk 0:01:50]}  Qh3 {[%clk 0:01:12]} 24. a5 {[%clk 0:01:28]}  b6 {[%clk 0:01:10]} 25. axb6 {[%clk 0:01:20]}  axb6 {[%clk 0:01:11]} 26. Qd3 {[%clk 0:01:15]}  g6 {[%clk 0:01:03]} 27. R5e4 {[%clk 0:00:51]}  Nf6 {[%clk 0:00:55]} 28. Re7 {[%clk 0:00:40]}  c5 {[%clk 0:00:44]} 29. Rxf7 {[%clk 0:00:04]}  Rxf7 {[%clk 0:00:37]} 30. Qxg6+ {[%clk 0:00:05]}  Rg7 {[%clk 0:00:36]} 31. Qxf6 {[%clk 0:00:05]}  Rf8 {[%clk 0:00:37]} 32. Qc6 {[%clk 0:00:05]}  Rxg3+ {[%clk 0:00:23]} 33. fxg3 {[%clk 0:00:04]}  Qxg3+ {[%clk 0:00:24]} 34. Kh1 {[%clk 0:00:04]}  Qxf3+ {[%clk 0:00:23]} 35. Qxf3 {[%clk 0:00:04]}  Rxf3 {[%clk 0:00:24]} 36. dxc5 {[%clk 0:00:04]}  bxc5 {[%clk 0:00:25]} 37. Re6 {[%clk 0:00:04]}  Rb3 {[%clk 0:00:24]} 38. Rxh6 {[%clk 0:00:04]}  Rxb2 {[%clk 0:00:24]} 39. Rc6 {[%clk 0:00:05]}  Rc2 {[%clk 0:00:24]} 40. h5 {[%clk 0:00:05]}  Kg7 {[%clk 0:00:24]} 41. Kg1 {[%clk 0:00:05]}  Kh7 {[%clk 0:00:24]} 42. h6 {[%clk 0:00:05]}  Rc4 {[%clk 0:00:23]} 43. Kf1 {[%clk 0:00:06]}  Rg4 {[%clk 0:00:23]} 44. Rxc5 {[%clk 0:00:06]}  Rg6 {[%clk 0:00:23]} 45. Rc2 {[%clk 0:00:06]}  Kxh6 {[%clk 0:00:24]} 46. Rh2+ {[%clk 0:00:06]}  Kg7 {[%clk 0:00:24]} 47. Rg2 {[%clk 0:00:07]}  Rxg2 {[%clk 0:00:24]} 48. Kxg2 {[%clk 0:00:08]} 1/2-1/2


[Site "https://www.chess.com"]

[Event "Titled Tuesday Blitz November 15 Early 2022"]
[White "Dehtiarov, Roman"]
[Black "Kaminski, Victor"]
[WhiteFideId "14186640"]
[BlackFideId "1131630"]
[WhiteElo "2200"]
[BlackElo "2181"]
[Result "1-0"]
[Round "04"]
[TimeControl "180+1"]
[Date "2022.11.16"]
[WhiteClock "0:01:44"]
[BlackClock "0:00:10"]

1. e4 {[%clk 0:03:00]}  e5 {[%clk 0:02:56]} 2. Nc3 {[%clk 0:03:00]}  Nf6 {[%clk 0:02:50]} 3. Nf3 {[%clk 0:02:59]}  Nc6 {[%clk 0:02:49]} 4. Bb5 {[%clk 0:03:00]}  Bb4 {[%clk 0:02:47]} 5. O-O {[%clk 0:02:52]}  O-O {[%clk 0:02:44]} 6. Bxc6 {[%clk 0:02:52]}  dxc6 {[%clk 0:02:41]} 7. d3 {[%clk 0:02:47]}  Bxc3 {[%clk 0:02:35]} 8. bxc3 {[%clk 0:02:48]}  Bg4 {[%clk 0:02:34]} 9. h3 {[%clk 0:02:47]}  Bxf3 {[%clk 0:02:32]} 10. Qxf3 {[%clk 0:02:48]}  Nd7 {[%clk 0:02:33]} 11. a4 {[%clk 0:02:45]}  a5 {[%clk 0:02:32]} 12. Qg3 {[%clk 0:02:44]}  f6 {[%clk 0:02:29]} 13. f4 {[%clk 0:02:43]}  Qe7 {[%clk 0:02:23]} 14. Be3 {[%clk 0:02:40]}  b6 {[%clk 0:02:17]} 15. c4 {[%clk 0:02:35]}  Nc5 {[%clk 0:02:09]} 16. Qf2 {[%clk 0:02:31]}  Nd7 {[%clk 0:01:59]} 17. f5 {[%clk 0:02:30]}  Kh8 {[%clk 0:01:47]} 18. g4 {[%clk 0:02:28]}  c5 {[%clk 0:01:41]} 19. h4 {[%clk 0:02:27]}  Nb8 {[%clk 0:01:28]} 20. Kg2 {[%clk 0:02:25]}  Nc6 {[%clk 0:01:29]} 21. Rh1 {[%clk 0:02:25]}  Kg8 {[%clk 0:01:23]} 22. g5 {[%clk 0:02:24]}  Kf7 {[%clk 0:01:23]} 23. Rag1 {[%clk 0:02:14]}  Ke8 {[%clk 0:01:20]} 24. Kf1 {[%clk 0:02:14]}  Rd8 {[%clk 0:01:16]} 25. h5 {[%clk 0:02:12]}  Kd7 {[%clk 0:00:44]} 26. h6 {[%clk 0:02:07]}  gxh6 {[%clk 0:00:33]} 27. gxf6 {[%clk 0:02:04]}  Qxf6 {[%clk 0:00:26]} 28. Rxh6 {[%clk 0:02:04]}  Qf7 {[%clk 0:00:26]} 29. Qh4 {[%clk 0:01:54]}  Kc8 {[%clk 0:00:17]} 30. Rxc6 {[%clk 0:01:53]}  Rg8 {[%clk 0:00:16]} 31. Rh6 {[%clk 0:01:49]}  Rxg1+ {[%clk 0:00:14]} 32. Bxg1 {[%clk 0:01:50]}  Rg8 {[%clk 0:00:11]} 33. Rxh7 {[%clk 0:01:46]}  Qe8 {[%clk 0:00:11]} 34. Qe7 {[%clk 0:01:45]}  Qc6 {[%clk 0:00:10]} 35. Qe6+ {[%clk 0:01:44]} 1-0


[Site "https://www.chess.com"]